Workbook

Sheet 1ª MEDIÇÃO (hidden)
A1: TRIBUNAL DE JUSTIÇA DE PERNAMBUCO
A2: =#REF! -> 
A3: MEMÓRIA DE CALCULO - 1ª MEDIÇÃO
A4: ITEM | B4: DESCRIÇÃO | C4: QUANT. | D4: LARG. | E4: COMP. | F4: ALT. | G4: TAXA | H4: TOTAL | I4: UNID | J4: MEMORIAL FOTOGRÁFICO

Sheet 2ª MEDIÇÃO (hidden)
A1: TRIBUNAL DE JUSTIÇA DE PERNAMBUCO
A2: =#REF! -> 
A3: MEMÓRIA DE CALCULO - 2ª MEDIÇÃO
A4: ITEM | B4: DESCRIÇÃO | C4: QUANT. | D4: LARG. | E4: COMP. | F4: ALT. | G4: TAXA | H4: TOTAL | I4: UNID | J4: MEMORIAL FOTOGRÁFICO

Sheet 3ª MEDIÇÃO (hidden)
A1: TRIBUNAL DE JUSTIÇA DE PERNAMBUCO
A2: =#REF! -> 
A3: MEMÓRIA DE CALCULO - 3ª MEDIÇÃO
A4: ITEM | B4: DESCRIÇÃO | C4: QUANT. | D4: LARG. | E4: COMP. | F4: ALT. | G4: TAXA | H4: TOTAL | I4: UNID | J4: MEMORIAL FOTOGRÁFICO

Sheet 4ª MEDIÇÃO (hidden)
A1: TRIBUNAL DE JUSTIÇA DE PERNAMBUCO
A2: =#REF! -> 
A3: MEMÓRIA DE CALCULO - 4ª MEDIÇÃO
A4: ITEM | B4: DESCRIÇÃO | C4: QUANT. | D4: LARG. | E4: COMP. | F4: ALT. | G4: TAXA | H4: TOTAL | I4: UNID | J4: MEMORIAL FOTOGRÁFICO

Sheet 5ª MEDIÇÃO (hidden)
A1: TRIBUNAL DE JUSTIÇA DE PERNAMBUCO
A2: =#REF! -> 
A3: MEMÓRIA DE CALCULO - 5ª MEDIÇÃO
A4: ITEM | B4: DESCRIÇÃO | C4: QUANT. | D4: LARG. | E4: COMP. | F4: ALT. | G4: TAXA | H4: TOTAL | I4: UNID | J4: MEMORIAL FOTOGRÁFICO

Sheet 6ª MEDIÇÃO (hidden)
A1: TRIBUNAL DE JUSTIÇA DE PERNAMBUCO
A2: =#REF! -> 
A3: MEMÓRIA DE CALCULO - 6ª MEDIÇÃO
A4: ITEM | B4: DESCRIÇÃO | C4: QUANT. | D4: LARG. | E4: COMP. | F4: ALT. | G4: TAXA | H4: TOTAL | I4: UNID | J4: MEMORIAL FOTOGRÁFICO

Sheet 7ª MEDIÇÃO (hidden)
A1: TRIBUNAL DE JUSTIÇA DE PERNAMBUCO
A2: =#REF! -> 
A3: MEMÓRIA DE CALCULO - 7ª MEDIÇÃO
A4: ITEM | B4: DESCRIÇÃO | C4: QUANT. | D4: LARG. | E4: COMP. | F4: ALT. | G4: TAXA | H4: TOTAL | I4: UNID | J4: MEMORIAL FOTOGRÁFICO

Sheet 8ª MEDIÇÃO (hidden)
A1: TRIBUNAL DE JUSTIÇA DE PERNAMBUCO
A2: =#REF! -> 
A3: MEMÓRIA DE CALCULO - 8ª MEDIÇÃO
A4: ITEM | B4: DESCRIÇÃO | C4: QUANT. | D4: LARG. | E4: COMP. | F4: ALT. | G4: TAXA | H4: TOTAL | I4: UNID | J4: MEMORIAL FOTOGRÁFICO

Sheet 9ª MEDIÇÃO (hidden)
A1: TRIBUNAL DE JUSTIÇA DE PERNAMBUCO
A2: =#REF! -> 
A3: MEMÓRIA DE CALCULO - 9ª MEDIÇÃO
A4: ITEM | B4: DESCRIÇÃO | C4: QUANT. | D4: LARG. | E4: COMP. | F4: ALT. | G4: TAXA | H4: TOTAL | I4: UNID | J4: MEMORIAL FOTOGRÁFICO

Sheet PLANILHA SINTÉTICA
A1: - | B1: TRIBUNAL DE JUSTIÇA DE PERNAMBUCO | E1: Nº CONTRATO: | F1: 149/2022
B2: CONSTRUÇÃO DO FÓRUM DE TAMANDARÉ - PE | E2: - | F2: -
B3: PLANILHA DE PREÇOS UNITÁRIOS DO FÓRUM DE TAMANDARÉ | E3: - | F3: -
B4: - | E4: VALOR DO CONTRATO: | F4: 4476376.518
A5: - | B5: - | C5: - | D5: - | E5: BDI: 19,16%
A6: ITEM | B6: DESCRIÇÃO | C6: UN | D6: QUANT. TOTAL | E6: TOTAL
E7: P. UNIT | F7: P. TOTAL
A8: 1.0 | B8: PROJETOS E ART´S | C8: - | D8: - | E8: - | F8: -
A9: 1.1 | B9: ART Execução de Obra | C9: un | D9: 1 | E9: 288.77 | F9: =E9*D9 -> 288.77
A10: 1.2 | B10: Elaboração de Projeto Executivo de Terraplanagem, Pavimentação e Drenagem, inclusive levantamento plani-altimétrico, estudo geotécnico do solo e ART. | C10: un | D10: 1 | E10: 9648.77 | F10: =E10*D10 -> 9648.77
A11: 1.3 | B11: Elaboração do PGRCC - Plano de Gerenciamento de Resíduos da Construção Civil. | C11: un | D11: 1 | E11: 2709.16 | F11: =E11*D11 -> 2709.16
A12: 1.4 | B12: Controle Tecnológico do Concreto com ensaio de compressão de corpos de prova cilíndricos (NBR 5739)/2007, com transporte para o laboratório realizado pelo cliente. | C12: un | D12: 124 | E12: 15.81 | F12: =E12*D12 -> 1960.44
A13: 2.0 | B13: ADMINISTRAÇÃO DA OBRA / MAQUINAS E EQUIPAMENTOS | C13: - | D13: - | E13: - | F13: -
A14: 2.1 | B14: Administração local pelo período da Obra. | C14: un/mês | D14: 12 | E14: 48127.48 | F14: =E14*D14 -> 577529.76
A15: 2.2 | B15: Transporte horizontal com jerica de 60l, de massa/ granel. | C15: m³xKm | D15: 16.75 | E15: 1491.35 | F15: =E15*D15 -> 24980.1125
A16: 2.3 | B16: Taxa de descarte resíduos da construção civil. | C16: ton. | D16: 39 | E16: 40.85 | F16: =E16*D16 -> 1593.15
A17: 2.4 | B17: Locação de andaime metálico tubular tipo torre, com plataforma metálica, guarda corpo metálico, escada, inclusive montagem e desmontagem. | C17: mxmês | D17: 162.8 | E17: 33.75 | F17: =E17*D17 -> 5494.5
A18: 3.0 | B18: SERVIÇOS PRELIMINARES | C18: - | D18: - | E18: - | F18: -
A19: 3.1 | B19: Mobilização da obra (pessoal, máquinas e equipamentos). | C19: un | D19: 1 | E19: 1698.1 | F19: =E19*D19 -> 1698.1
A20: 3.2 | B20: Levantamento topográfico planimétrico cadastral. | C20: m² | D20: 5584.5 | E20: 0.29 | F20: =E20*D20 -> 1619.505
A21: 3.3 | B21: Limpeza mecanizada de camada vegetal, vegetação e pequenas árvores (diâmetro de tronco menor que 0,20m), com trator de esteiras. | C21: m² | D21: 5584.5 | E21: 0.25 | F21: =E21*D21 -> 1396.125
A22: 3.4 | B22: Remoção de metralha em caminhão basculante D.M.T. 6 Km, inclusive carga e descarga mecânica. | C22: m³ | D22: 279.3 | E22: 15.81 | F22: =E22*D22 -> 4415.733
A23: 3.5 | B23: Locação convencional de obra, utilizando gabarito de tábuas corridas pontaletadas a cada 2,00m - 2 utilizações. | C23: m | D23: 122.1 | E23: 53.9 | F23: =E23*D23 -> 6581.19
A24: 3.6 | B24: Rebaixamento com ponteiras filtrantes (01 conjunto - 25uni), inclusive grupo gerador 80 kva - aluguel mensal | C24: mês | D24: 3 | E24: 8600.17 | F24: =E24*D24 -> 25800.51
A25: 4.0 | B25: CANTEIRO DE OBRA | C25: - | D25: - | E25: - | F25: -
A26: 4.1 | B26: Placa de obra em lona plástica impressão digital alta resolução com acabamento em ilhós, fixação em abraçadeiras de nylon, estrutura em ferro galvanizado e suporte em pontaletes de madeira. | C26: m² | D26: 4 | E26: 372.99 | F26: =E26*D26 -> 1491.96
A27: 4.2 | B27: Tapume com compensado de madeira. | C27: m² | D27: 696.4 | E27: 118.78 | F27: =E27*D27 -> 82718.392
A28: 4.3 | B28: Ligação provisória de luz e força para obra. | C28: un | D28: 1 | E28: 2623.57 | F28: =E28*D28 -> 2623.57
A29: 4.4 | B29: Ligações provisórias de água e sanitário. | C29: un | D29: 1 | E29: 701.01 | F29: =E29*D29 -> 701.01
A30: 4.5 | B30: Fornecimento e execução de barracão aberto para apoio à produção (carpintaria, central de armação, oficina, etc.) com tesouras, telha 4mm, piso em concreto desempolado. | C30: m² | D30: 20 | E30: 140.61 | F30: =E30*D30 -> 2812.2
A31: 4.6 | B31: Construção de escritório em canteiro de obra em alvenaria, não incluso mobiliário e equipamentos. | C31: m² | D31: 23.55 | E31: 1106.9 | F31: =E31*D31 -> 26067.495
A32: 4.7 | B32: Construção de almoxarifado em canteiro de obra em alvenaria, incluso prateleiras. | C32: m² | D32: 5.3 | E32: 891.07 | F32: =E32*D32 -> 4722.671
A33: 4.8 | B33: Construção de refeitório em canteiro de obra em alvenaria, não incluso mobiliário e equipamentos. | C33: m² | D33: 28.25 | E33: 560.69 | F33: =E33*D33 -> 15839.4925
A34: 4.9 | B34: Execução de sanitário e vestiário em canteiro de obra em alvenaria, não incluso mobiliário. | C34: m² | D34: 17.7 | E34: 971.64 | F34: =E34*D34 -> 17198.028
A35: 4.10 | B35: Fornecimento e montagem de tela de sinalização laranja (H=1,2m) fixada em montantes de ferro de 1/2" ou em barrotes de madeira 3x3 Pol. Colocados sobre base de concreto traço 1:4:8, espaçados a cada 2 m, inclusive posterior retirada e reaproveitamento. | C35: m | D35: 131.75 | E35: 18.58 | F35: =E35*D35 -> 2447.915
A36: 4.11 | B36: Fornecimento e instalação de sumidouro pré-moldado de concreto - 03 anéis h=0,50m cada, inclusive escavação. | C36: un | D36: 1 | E36: 760.45 | F36: =E36*D36 -> 760.45
A37: 5.0 | B37: MOVIMENTO DE TERRA | C37: - | D37: - | E37: 0 | F37: -
A38: 5.1 | B38: Escavação mecanizada para bloco de coroamento ou sapata, com previsão de forma, com retroescavadeira. | C38: m³ | D38: 472.7 | E38: 50.73 | F38: =E38*D38 -> 23980.071
A39: 5.2 | B39: Escavação manual em terra até 1,50 m de profundidade, sem escoramento. | C39: m³ | D39: 5.6 | E39: 45.18 | F39: =E39*D39 -> 253.008
A40: 5.3 | B40: Escavação mecânica valas em qualquer tipo de solo exceto rocha, prof. 0<h<4m. | C40: m³ | D40: 166.2 | E40: 31.13 | F40: =E40*D40 -> 5173.806
A41: 5.4 | B41: Escavação mecânica de vala em material de primeira categoria até 3,0m de profundidade, sem escoramento. | C41: m³ | D41: 77.5 | E41: 7.77 | F41: =E41*D41 -> 602.175
A42: 5.5 | B42: Reaterro manual apiloado com soquete. | C42: m³ | D42: 537 | E42: 54.18 | F42: =E42*D42 -> 29094.66
A43: 5.6 | B43: Remoção de material de primeira categoria em caminhão basculante, D.M.T. 6 Km, inclusive carga manual e descarga mecânica. | C43: m³ | D43: 235.6 | E43: 55.61 | F43: =E43*D43 -> 13101.716
A44: 5.7 | B44: Execução de aterro abrangendo espalhamento homogeneização, umedecimento e compactação mecânica em camadas de 20cm de espessura, inclusive o fornecimento do barro proveniente de jazida a uma distância máxima de 12Km. | C44: m³ | D44: 587.6 | E44: 74.89 | F44: =E44*D44 -> 44005.364
A45: 5.8 | B45: Transporte horizontal com jerica de 60l, de massa/ granel. | C45: m³xKm | D45: 7.5 | E45: 1491.35 | F45: =E45*D45 -> 11185.125
A46: 6.0 | B46: INFRAESTRUTURA | C46: - | D46: - | E46: 0 | F46: -
A47: 6.1 | B47: Concreto magro para lastro, traço 1:4, 5:4, 5 (cimento/ areia média/ brita 1) - preparo mecânico com betoneira 400 L. | C47: m³ | D47: 12.5 | E47: 345.92 | F47: =E47*D47 -> 4324
A48: 6.2 | B48: Fabricação, montagem e desmontagem de fôrma para sapata, em chapa de madeira compensada resinada, e=17 mm, 4 utilizações. | C48: m² | D48: 131 | E48: 202.27 | F48: =E48*D48 -> 26497.37
A49: 6.3 | B49: Fabricação, montagem e desmontagem de fôrma para viga baldrame, em chapa de madeira compensada resinada, e=17 mm, 4 utilizações. | C49: m² | D49: 338.2 | E49: 95.69 | F49: =E49*D49 -> 32362.358
A50: 6.4 | B50: Fabricação, montagem e desmontagem de fôrma para paredes de reservatório, em chapa de madeira compensada resinada, e = 17 mm, 2 utilizações. | C50: m² | D50: 165.7 | E50: 130.99 | F50: =E50*D50 -> 21705.043
A51: 6.5 | B51: Armação de bloco, viga baldrame e sapata utilizando aço ca-60 de 5 mm - montagem. | C51: kg | D51: 419 | E51: 20.48 | F51: =E51*D51 -> 8581.12
A52: 6.6 | B52: Armação de bloco, viga baldrame ou sapata utilizando aço ca-50 de 8 mm - montagem. | C52: kg | D52: 772.9 | E52: 17.2 | F52: =E52*D52 -> 13293.88
A53: 6.7 | B53: Armação de bloco, viga baldrame ou sapata utilizando aço ca-50 de 10 mm - montagem. | C53: kg | D53: 1481.9 | E53: 15.37 | F53: =E53*D53 -> 22776.803
A54: 6.8 | B54: Armação de bloco, viga baldrame ou sapata utilizando aço ca-50 de 12,5 mm - montagem. | C54: kg | D54: 205.85 | E54: 12.8 | F54: =E54*D54 -> 2634.88
A55: 6.9 | B55: Armação de bloco, viga baldrame ou sapata utilizando aço ca-50 de 16 mm - montagem. | C55: kg | D55: 133.44 | E55: 12 | F55: =E55*D55 -> 1601.28
A56: 6.10 | B56: Concretagem de sapatas, FCK 35 Mpa com adição de metacaulim, e uso de bomba lançamento, adensamento e acabamento. | C56: m³ | D56: 29.43 | E56: 1293.46 | F56: =E56*D56 -> 38066.5278
A57: 6.11 | B57: Concretagem de sapatas, FCK 35 Mpa , com uso de bomba  lançamento, adensamento e acabamento. | C57: m³ | D57: 4.5 | E57: 504.07 | F57: =E57*D57 -> 2268.315
A58: 6.12 | B58: Concreto estrutural, FCK 20 Mpa, condição B (NBR-12655), lançado em estruturas e adensado. | C58: m³ | D58: 2.71 | E58: 765.18 | F58: =E58*D58 -> 2073.6378
A59: 6.13 | B59: Concretagem de blocos de coroamento e vigas baldrames, Fck 35 Mpa com adição de metacaulim, com uso de bomba  lançamento, adensamento e acabamento. (Bloco e radier) | C59: m³ | D59: 20.65 | E59: 1285.25 | F59: =E59*D59 -> 26540.4125
A60: 6.14 | B60: Graute Fgk=30 Mpa; traço 1:0,9:1,2:0,6 (em massa seca de cimento/ areia grossa/ brita 0/ aditivo) - preparo mecânico com betoneira 400 l. | C60: m³ | D60: 3.69 | E60: 577.18 | F60: =E60*D60 -> 2129.7942
A61: 6.15 | B61: Montagem e desmontagem de fôrma de laje maciça, pé-direito simples, em madeira serrada, 4 utilizações. | C61: m² | D61: 30.81 | E61: 149.31 | F61: =E61*D61 -> 4600.2411
A62: 6.16 | B62: Montagem e desmontagem de fôrma de pilares retangulares e estruturas similares, pé-direito simples, em chapa de madeira compensada resinada, 4 utilizações. | C62: m² | D62: 7.2 | E62: 77.52 | F62: =E62*D62 -> 558.144
A63: 6.17 | B63: Montagem e desmontagem de fôrma de viga, escoramento metálico, pé-direito simples, em chapa de madeira resinada, 4 utilizações. | C63: m² | D63: 12.16 | E63: 117.1 | F63: =E63*D63 -> 1423.936
A64: 6.18 | B64: Armação laje de uma estrutura convencional de concreto armado em um edifício de múltiplos pavimentos utilizando aço CA-50 de 6.3 mm - Montagem. | C64: kg | D64: 53 | E64: 15.22 | F64: =E64*D64 -> 806.66
A65: 6.19 | B65: Armação de laje de uma estrutura convencional de concreto armado em um edifício de múltiplos pavimentos utilizando aço CA-50 de 8.0 mm - Montagem. | C65: kg | D65: 20 | E65: 14.39 | F65: =E65*D65 -> 287.8
A66: 6.20 | B66: Armação de estruturas de concreto armado, exceto vigas, pilares, lajes e fundações, utilizando aço ca-60 de 5,0 mm - montagem. | C66: kg | D66: 77.11 | E66: 18.96 | F66: =E66*D66 -> 1462.0056
A67: 6.21 | B67: Armação de estruturas de concreto armado, exceto vigas, pilares, lajes e fundações, utilizando aço ca-50 de 6,3 mm - montagem. | C67: kg | D67: 609 | E67: 17.67 | F67: =E67*D67 -> 10761.03
A68: 6.22 | B68: Armação de estruturas de concreto armado, exceto vigas, pilares, lajes e fundações, utilizando aço ca-50 de 8,0 mm - montagem. | C68: kg | D68: 1341.9 | E68: 16.25 | F68: =E68*D68 -> 21805.875
A69: 6.23 | B69: Armação de estruturas de concreto armado, exceto vigas, pilares, lajes e fundações, utilizando aço ca-50 de 10,0 mm - montagem. | C69: kg | D69: 459.81 | E69: 14.59 | F69: =E69*D69 -> 6708.6279
A70: 6.24 | B70: Armação de estruturas de concreto armado, exceto vigas, pilares, lajes e fundações, utilizando aço ca-50 de 12,5 mm - montagem. | C70: kg | D70: 184 | E70: 12.12 | F70: =E70*D70 -> 2230.08
A71: 6.25 | B71: Armação de estruturas de concreto armado, exceto vigas, pilares, lajes e fundações, utilizando aço ca-50 de 16,0 mm - montagem. | C71: kg | D71: 286 | E71: 11.42 | F71: =E71*D71 -> 3266.12
A72: 6.26 | B72: Armação de estruturas de concreto armado, exceto vigas, pilares, lajes e fundações, utilizando aço ca-50 de 20,0 mm - montagem. | C72: kg | D72: 40 | E72: 12.83 | F72: =E72*D72 -> 513.2
A73: 6.27 | B73: Concretagem de vigas e lajes, Fck=35 Mpa, para lajes maciças ou nervuradas com uso de bomba em edificação com área média de lajes maior que 20 m² - incluso aditivo liquido impermeabilizante cristalizante - lançamento, adensamento e acabamento. | C73: m³ | D73: 14.08 | E73: 597.41 | F73: =E73*D73 -> 8411.5328
A74: 6.28 | B74: Concretagem de edificações (paredes e lajes) feitas com sistema de formas manuseáveis, com concreto usinado bombeável FCK 35 Mpa - Lançamento, adensamento e acabamento. | C74: m³ | D74: 9.64 | E74: 488.06 | F74: =E74*D74 -> 4704.8984
A75: 6.29 | B75: Concretagem de pilares, Fck = 35 Mpa, com uso de bomba em edificação com seção média de pilares menor ou igual a 0,25 m² - lançamento, adensamento e acabamento. | C75: m³ | D75: 2.62 | E75: 490.91 | F75: =E75*D75 -> 1286.1842
A76: 6.30 | B76: Execução de laje tipo treliçada β 13, incluindo vigotas treliçadas com EPS, escoramento. | C76: m² | D76: 7.15 | E76: 157.85 | F76: =E76*D76 -> 1128.6275
A77: 6.31 | B77: Regularização piso com argamassa traço 1:4, e=3cm, para revestimento de piso. | C77: m² | D77: 22.58 | E77: 36.24 | F77: =E77*D77 -> 818.2992
A78: 7.0 | B78: ALVENARIA DE FUNDAÇÃO | C78: - | D78: - | E78: 0 | F78: -
A79: 7.1 | B79: Alvenaria de tijolos de 8 furos, assentados e rejuntados com argamassa de cimento e areia no traço 1:6 - 1 vez. | C79: m² | D79: 213.33 | E79: 114.14 | F79: =E79*D79 -> 24349.4862
A80: 7.2 | B80: Alvenaria de embasamento com bloco estrutural de concreto, de 14x19x29cm e argamassa de assentamento com preparo em betoneira. (Muro e mureta) | C80: m³ | D80: 22 | E80: 839.31 | F80: =E80*D80 -> 18464.82
A81: 7.3 | B81: Alvenaria de embasamento/fundação em blocos de concreto 19x19x39, FCK 4,5Mpa. | C81: m | D81: 5.64 | E81: 21.08 | F81: =E81*D81 -> 118.8912
A82: 7.4 | B82: Cinta de amarração de alvenaria moldada in loco com utilização de blocos canaleta. | C82: m | D82: 160.82 | E82: 36.46 | F82: =E82*D82 -> 5863.4972
A83: 8.0 | B83: SUPERSTRUTURA (PILAR / VIGA/ LAJE - FORMA, ARMAÇÃO E CONCRETO) | C83: - | D83: - | E83: 0 | F83: -
A84: 8.1 | B84: Montagem e desmontagem de fôrma de pilares retangulares e estruturas similares, pé-direito simples, em chapa de madeira compensada resinada, e = 17 mm, 4 utilizações. | C84: m² | D84: 137.75 | E84: 77.52 | F84: =E84*D84 -> 10678.38
A85: 8.2 | B85: Armação de pilar ou viga de uma estrutura convencional de concreto armado em um edifício de múltiplos pavimentos utilizando aço CA-60 de 5.0 mm - Montagem. | C85: kg | D85: 461.44 | E85: 17.35 | F85: =E85*D85 -> 8005.984
A86: 8.3 | B86: Armação de pilar ou viga de uma estrutura convencional de concreto armado em um edifício de múltiplos pavimentos utilizando aço CA-50 de 6.3 mm - Montagem. | C86: kg | D86: 50.55 | E86: 16.44 | F86: =E86*D86 -> 831.042
A87: 8.4 | B87: Armação de pilar ou viga de uma estrutura convencional de concreto armado em um edifício de múltiplos pavimentos utilizando aço CA-50 de 8.0 mm - Montagem. | C87: kg | D87: 558.06 | E87: 15.4 | F87: =E87*D87 -> 8594.124
A88: 8.5 | B88: Armação de pilar ou viga de uma estrutura convencional de concreto armado em um edifício de múltiplos pavimentos utilizando aço CA-50 de 10.0 mm - Montagem. | C88: kg | D88: 947.14 | E88: 13.9 | F88: =E88*D88 -> 13165.246
A89: 8.6 | B89: Armação de pilar ou viga de uma estrutura convencional de concreto armado em um edifício de múltiplos pavimentos utilizando aço CA-50 de 12.5 mm - Montagem. | C89: kg | D89: 760.69 | E89: 11.61 | F89: =E89*D89 -> 8831.6109
A90: 8.7 | B90: Armação de pilar ou viga de uma estrutura convencional de concreto armado em um edifício de múltiplos pavimentos utilizando aço CA-50 de 16.0 mm - Montagem. | C90: kg | D90: 278.18 | E90: 11.07 | F90: =E90*D90 -> 3079.4526
A91: 8.8 | B91: Concretagem de pilares, Fck = 35 mpa, com uso de bomba em edificação com seção média de pilares menor ou igual a 0,25 m² - lançamento, adensamento e acabamento. | C91: m³ | D91: 7.06 | E91: 492.1 | F91: =E91*D91 -> 3474.226
A92: 8.9 | B92: Montagem e desmontagem de fôrma de viga, escoramento metálico, pé-direito simples, em chapa de madeira resinada, 2 utilizações. | C92: m² | D92: 377.68 | E92: 148.74 | F92: =E92*D92 -> 56176.1232
A93: 8.10 | B93: Montagem e desmontagem de fôrma de laje maciça com área média maior que 20 m², pé-direito simples, em chapa de madeira compensada resinada e = 17 mm, 2 utilizações. | C93: m² | D93: 37.97 | E93: 52.03 | F93: =E93*D93 -> 1975.5791
A94: 8.11 | B94: Montagem e desmontagem de fôrma de laje nervurada com cubeta e assoalho com área média maior que 20 m², pé-direito simples, em chapa de madeira compensada resinada, 8 utilizações, excluso a locação das formas plásticas | C94: m² | D94: 693.51 | E94: 40.52 | F94: =E94*D94 -> 28101.0252
A95: 8.12 | B95: Armação laje de uma estrutura convencional de concreto armado em um edifício de múltiplos pavimentos utilizando aço CA-50 de 6.3 mm - Montagem. | C95: kg | D95: 1042.95 | E95: 15.22 | F95: =E95*D95 -> 15873.699
A96: 8.13 | B96: Armação de laje de uma estrutura convencional de concreto armado em um edifício de múltiplos pavimentos utilizando aço CA-50 de 8.0 mm - Montagem. | C96: kg | D96: 474.24 | E96: 14.39 | F96: =E96*D96 -> 6824.3136
A97: 8.14 | B97: Armação de laje de uma estrutura convencional de concreto armado em um edifício de múltiplos pavimentos utilizando aço ca-50 de 10,0 mm - montagem. | C97: kg | D97: 64 | E97: 13.17 | F97: =E97*D97 -> 842.88
A98: 8.15 | B98: Armação de laje de uma estrutura convencional de concreto armado em um edifício de múltiplos pavimentos utilizando aço CA-50 de 12.5 mm - Montagem. | C98: kg | D98: 147.18 | E98: 11.07 | F98: =E98*D98 -> 1629.2826
A99: 8.16 | B99: Armação em tela de aço soldada nervurada q-61, aço ca-60, 3,4mm, malha 15x15cm | C99: kg | D99: 867.98 | E99: 12.19 | F99: =E99*D99 -> 10580.6762
A100: 8.17 | B100: Concretagem de vigas e lajes, Fck=35 Mpa, para lajes maciças ou nervuradas com uso de bomba em edificação com área média de lajes maior que 20 m² - incluso aditivo líquido impermeabilizante cristalizante - lançamento, adensamento e acabamento. | C100: m³ | D100: 83.15 | E100: 597.41 | F100: =E100*D100 -> 49674.6415
A101: 8.18 | B101: Execução de laje tipo treliçada β 17, incluindo vigotas treliçadas com EPS e escoramento. | C101: m² | D101: 444.96 | E101: 182.72 | F101: =E101*D101 -> 81303.0912
A102: 8.19 | B102: Execução de laje tipo treliçada β 21, incluindo vigotas treliçadas com EPS, escoramento. | C102: m² | D102: 246.47 | E102: 215.81 | F102: =E102*D102 -> 53190.6907
A103: 8.20 | B103: Execução de laje tipo treliçada β 25, incluindo vigotas treliçadas com EPS e escoramento. | C103: m² | D103: 114.98 | E103: 231.49 | F103: =E103*D103 -> 26616.7202
A104: 9.0 | B104: VEDAÇÕES | C104: - | D104: - | E104: 0 | F104: -
A105: 9.1 | B105: ALVENARIA DE VEDAÇÃO | C105: - | D105: - | E105: 0 | F105: -
A106: 9.1.1 | B106: Alvenaria de vedação de blocos cerâmicos furados na horizontal de 9x19x19cm (espessura 9cm) e argamassa de assentamento com preparo em betoneira. | C106: m² | D106: 782.17 | E106: 83.55 | F106: =E106*D106 -> 65350.3035
A107: 9.1.2 | B107: Fixação (encunhamento) de alvenaria de vedação com argamassa aplicada com colher. | C107: m | D107: 283.91 | E107: 6.52 | F107: =E107*D107 -> 1851.0932
A108: 9.1.3 | B108: Alvenaria de vedação de blocos vazados de concreto de 14x19x39 cm (espessura 14 cm) e argamassa de assentamento com preparo em betoneira. | C108: m² | D108: 418.41 | E108: 84.43 | F108: =E108*D108 -> 35326.3563
A109: 9.1.4 | B109: Fornecimento e assentamento de telas soldadas produzidas com fio de 1,65 mm de diâmetro e malha de 15 x 15 mm, galvanizadas, com largura x comprimento de 7,5x50cm, Belgofix ou equivalente. | C109: un | D109: 1146 | E109: 8.71 | F109: =E109*D109 -> 9981.66
A110: 9.2 | B110: VERGA-CONTRAVERGA EM CONCRETO | C110: - | D110: - | E110: 0 | F110: -
A111: 9.2.1 | B111: Verga pré-moldada para janelas com até 1,5 m de vão. Fornecimento e assentamento | C111: m | D111: 19.85 | E111: 42.73 | F111: =E111*D111 -> 848.1905
A112: 9.2.2 | B112: Verga pré-moldada para janelas com mais de 1,5 m de vão. Fornecimento e assentamento | C112: m | D112: 57.4 | E112: 54.28 | F112: =E112*D112 -> 3115.672
A113: 9.2.3 | B113: Verga pré-moldada para portas com até 1,5 m de vão. | C113: m | D113: 25.43 | E113: 32.01 | F113: =E113*D113 -> 814.0143
A114: 9.2.4 | B114: Verga pré-moldada para portas com mais de 1,5 m de vão. Fornecimento e assentamento. | C114: m | D114: 5.45 | E114: 53.43 | F114: =E114*D114 -> 291.1935
A115: 9.2.5 | B115: Contraverga pré-moldada para vãos de até 1,5 m de comprimento. Fornecimento e assentamento. | C115: m | D115: 19.85 | E115: 43.9 | F115: =E115*D115 -> 871.415
A116: 9.2.6 | B116: Contraverga pré-moldada para vãos de mais de 1,5 m de comprimento. Fornecimento e assentamento. | C116: m | D116: 66.29 | E116: 52.7 | F116: =E116*D116 -> 3493.483
A117: 9.3 | B117: PAREDE EM DRY-WALL COM TRATAMENTO ACÚSTICO | C117: - | D117: - | E117: 0 | F117: -
A118: 9.3.1 | B118: Parede com placas de gesso acartonado (drywall), para uso interno, com duas faces simples e estrutura metálica com guias duplas, com vãos. (Espessura da parede 10cm) | C118: m² | D118: 311.35 | E118: 151.97 | F118: =E118*D118 -> 47315.8595
A119: 9.3.2 | B119: Parede com placas de gesso acartonado (drywall), para uso interno, com duas faces duplas e estrutura metálica com guias duplas, com vãos. (Espessura da parede 25cm) | C119: m² | D119: 88.483 | E119: 199.38 | F119: =E119*D119 -> 17641.74054
A120: 9.3.3 | B120: Instalação de isolamento com lã de rocha em parede drywall com densidade = 32 kg/m3, espessura =50mm | C120: m² | D120: 488.31 | E120: 57.08 | F120: =E120*D120 -> 27872.7348
A121: 10.0 | B121: REVESTIMENTO DE PAREDE | C121: - | D121: - | E121: 0 | F121: -
A122: 10.1 | B122: CHAPISCO INTERNO | C122: - | D122: - | E122: 0 | F122: -
A123: 10.1.1 | B123: Chapisco aplicado em alvenarias e estruturas de concreto internas, com colher de pedreiro. argamassa traço 1:3 com preparo em betoneira 400l. | C123: m² | D123: 1101.85 | E123: 4.14 | F123: =E123*D123 -> 4561.659
A124: 10.2 | B124: EMBOÇO/ MASSA ÚNICA INTERNO | C124: - | D124: - | E124: 0 | F124: -
A125: 10.2.1 | B125: (Composição representativa) do serviço de emboço/massa única, traço 1:2:8, preparo mecânico, com betoneira de 400l, em paredes de ambientes internos, com execução de taliscas, para edificação habitacional multifamiliar (prédio). | C125: m² | D125: 889.56 | E125: 39.52 | F125: =E125*D125 -> 35155.4112
A126: 10.3 | B126: REVESTIMENTO DE PAREDE INTERNA EM PORCELANATO/CERÂMICA | C126: - | D126: - | E126: 0 | F126: -
A127: 10.3.1 | B127: Fornecimento e assentamento de porcelanato polido retificado, tipo A, linha Smoke, 74,0 x 74,0cm, Elizabeth ou equivalente, assentado em PISO ou PAREDE com argamassa industrializada AC-III, com espaçamento de 2mm e rejuntado com argamassa de rejuntamento flexível e impermeável, na cor cinza platino. | C127: m² | D127: 149.01 | E127: 98.67 | F127: =E127*D127 -> 14702.8167
A128: 10.3.2 | B128: Fornecimento e assentamento de porcelanato ANTIDERRAPANTE retificado, tipo A, Spazzolato Vecchio HARD 84X84cm, Elizabeth ou equivalente, assentado em PISO ou PAREDE com argamassa industrializada AC-III, com espaçamento de 2mm e rejuntado com argamassa de rejuntamento flexível e impermeável. | C128: m² | D128: 67.93 | E128: 110.96 | F128: =E128*D128 -> 7537.5128
A129: 10.3.3 | B129: Fornecimento de cerâmica cor CRISTAL BRANCO da Elizabeth ou equivalente, dimensões aproximadas 5x10cm, assentada em paredes internas, com argamassa colante industrializada AC II e rejuntada com argamassa de rejuntamento flexível impermeável. | C129: m² | D129: 229.01 | E129: 86.95 | F129: =E129*D129 -> 19912.4195
A130: 10.3.4 | B130: Fornecimento de revestimento 3D FABER BRANCO ANDINO 15,3x15,3cm para paredes internas, assentado com argamassa colante AC III. | C130: m² | D130: 35.19 | E130: 376.86 | F130: =E130*D130 -> 13261.7034
A131: 10.3.5 | B131: Fornecimento de pastilhas de porcelana esmaltadas 5x5cm Atlas SG8409 Rubi ou equivalente, assentada com argamassa colante AC III Quartzolit ou equivalente e rejuntada com argamassa de rejuntamento flexível Quartzolit ou equivalente, alinhada a prumo. | C131: m² | D131: 21.47 | E131: 217.75 | F131: =E131*D131 -> 4675.0925
A132: 11.0 | B132: REVESTIMENTO DE PAREDE EXTERNA | C132: - | D132: - | E132: 0 | F132: -
A133: 11.1 | B133: CHAPISCO EXTERNO E FUNDAÇÃO | C133: - | D133: - | E133: 0 | F133: -
A134: 11.1.1 | B134: Chapisco aplicado em alvenarias e estruturas de concreto, com colher de pedreiro. argamassa traço 1:3 com preparo em betoneira 400l. (FUNDAÇÃO) | C134: m² | D134: 338.2 | E134: 4.14 | F134: =E134*D134 -> 1400.148
A135: 11.1.2 | B135: Chapisco aplicado em alvenaria (com presença de vãos) e estruturas de concreto de fachada, com colher de pedreiro. argamassa traço 1:3 com preparo em betoneira 400l. (FACHADA) | C135: m² | D135: 1832.26 | E135: 9.27 | F135: =E135*D135 -> 16985.0502
A136: 11.2 | B136: EMBOÇO / MASSA UNICA EXTERNO | C136: - | D136: - | E136: 0 | F136: -
A137: 11.2.1 | B137: Emboço ou massa única em argamassa traço 1:2:8, preparo mecânico com betoneira 400 l, aplicada manualmente em panos de fachada com presença de vãos, espessura de 25 mm. (FACHADA) | C137: m² | D137: 1834.81 | E137: 60.53 | F137: =E137*D137 -> 111061.0493
A138: 11.3 | B138: REVESTIMENTO DE PAREDE EXTERNA | C138: - | D138: - | E138: 0 | F138: -
A139: 11.3.1 | B139: Fornecimento e assentamento de pedra Itacolomi do Norte (30x5cm), tipo canjiquinha, assentada com argamassa de cimento e areia no traço 1:6. | C139: m² | D139: 159.12 | E139: 114.63 | F139: =E139*D139 -> 18239.9256
A140: 11.3.2 | B140: Fornecimento e assentamento de pedra Itacolomi (*30x20cm*), assentada com argamassa de cimento e areia no traço 1:6. | C140: m² | D140: 43.55 | E140: 88.78 | F140: =E140*D140 -> 3866.369
A141: 11.3.3 | B141: Fornecimento de cerâmica cor CRISTAL BRANCO da Elizabeth ou equivalente, dimensões aproximadas 5x10cm, assentada em paredes externas, com argamassa colante industrializada AC III e rejuntada com argamassa de rejuntamento flexível impermeável. (FACHADA, LIXEIRA, RAMPAS E ESCADAS) | C141: m² | D141: 491.82 | E141: 86.95 | F141: =E141*D141 -> 42763.749
A142: 11.3.4 | B142: Fornecimento de pastilhas de porcelana esmaltadas 5x5cm Atlas SG8409 Rubi ou equivalente, assentada com argamassa colante AC III Quartzolit ou equivalente e rejuntada com argamassa de rejuntamento flexível Quartzolit ou equivalente, alinhada a prumo. | C142: m² | D142: 109.75 | E142: 217.75 | F142: =E142*D142 -> 23898.0625
A143: 11.3.5 | B143: Fornecimento de pastilhas de porcelana esmaltadas 5x5cm Atlas SG8406 Ardósia ou equivalente, assentada com argamassa colante AC III Quartzolit ou equivalente e rejuntada com argamassa de rejuntamento flexível Quartzolit ou equivalente, alinhada a prumo. | C143: m² | D143: 53.84 | E143: 231.45 | F143: =E143*D143 -> 12461.268
A144: 11.3.6 | B144: Cerâmica 5x10cm Elizabeth ou equivalente, lux grafite, assentadas horizontalmente com argamassa colante AC III Quartzolit ou equivalente e rejuntadas com argamassa de rejuntamento flexível Quartzolit ou equivalente. | C144: m² | D144: 202.26 | E144: 96.58 | F144: =E144*D144 -> 19534.2708
A145: 11.3.7 | B145: Fornecimento e aplicação de junta de mastique, inclusive preenchimento da junta com tarucel 20mm. | C145: m | D145: 137 | E145: 67.7 | F145: =E145*D145 -> 9274.9
A146: 12.0 | B146: REVESTIMENTO DE PISO INTERNO | C146: - | D146: - | E146: 0 | F146: -
A147: 12.1 | B147: CONCRETO DO PISO DA LAMINA DE CONSTRUÇÃO | C147: - | D147: - | E147: 0 | F147: -
A148: 12.1.1 | B148: Concretagem de radier, piso de concreto ou laje sobre solo, Fck 15 Mpa usinado, espessura de 5 cm - lançamento, adensamento e acabamento. | C148: m³ | D148: 35.1 | E148: 374.99 | F148: =E148*D148 -> 13162.149
A149: 12.2 | B149: CONTRAPISO | C149: - | D149: - | E149: - | F149: -
A150: 12.2.1 | B150: Contrapiso em argamassa traço 1:4 (cimento e areia), preparo mecânico com betoneira 400 l, aplicado em áreas secas sobre laje, aderido, acabamento não reforçado, espessura 3cm. | C150: m² | D150: 597.36 | E150: 37.18 | F150: =E150*D150 -> 22209.8448
A151: 12.2.2 | B151: Contrapiso em argamassa traço 1:4 (cimento e areia), preparo mecânico com betoneira 400 l, aplicado em áreas molhadas sobre laje, aderido, acabamento não reforçado, espessura 3cm. | C151: m² | D151: 174.4 | E151: 49.75 | F151: =E151*D151 -> 8676.4
A152: 12.3 | B152: REVESTIMENTO DE PISO E RODAPÉ | C152: - | D152: - | E152: 0 | F152: -
A153: 12.3.1 | B153: Fornecimento e assentamento de porcelanato retificado, tipo A, Spazzolato Vecchio ACETINADO 84X84cm, Elizabeth ou equivalente, assentado em PISO ou PAREDE com argamassa industrializada AC-III, com espaçamento de 2mm e rejuntado com argamassa de rejuntamento flexível e impermeável. | C153: m² | D153: 570.35 | E153: 106.53 | F153: =E153*D153 -> 60759.3855
A154: 12.3.2 | B154: Fornecimento e assentamento de rodapé em Porcelanato retificado, tipo A, Spazzolato Vecchio ACETINADO 84x84cm, Elizabeth ou equivalente com 15cm, assentado com argamassa colante industrializada ACIII e rejuntada com argamassa de rejuntamento flexível e impermeável. | C154: m | D154: 25.09 | E154: 47.6 | F154: =E154*D154 -> 1194.284
A155: 12.3.3 | B155: Fornecimento e assentamento de rodapé em Porcelanato retificado, tipo A, Spazzolato Vecchio ACETINADO 84x84cm, Elizabeth ou equivalente com 7cm, assentado com argamassa colante industrializada ACIII e rejuntada com argamassa de rejuntamento flexível e impermeável. | C155: m | D155: 371.29 | E155: 22.18 | F155: =E155*D155 -> 8235.2122
A156: 12.3.4 | B156: Fornecimento e assentamento de porcelanato ANTIDERRAPANTE retificado, tipo A, Spazzolato Vecchio HARD 84X84cm, Elizabeth ou equivalente, assentado em PISO ou PAREDE com argamassa industrializada AC-III, com espaçamento de 2mm e rejuntado com argamassa de rejuntamento flexível e impermeável. | C156: m² | D156: 63.5 | E156: 110.96 | F156: =E156*D156 -> 7045.96
A157: 12.3.5 | B157: Fornecimento e assentamento de rodapé em perfil "U" metálico, *15mm. | C157: m² | D157: 87 | E157: 35.48 | F157: =E157*D157 -> 3086.76
A158: 13.0 | B158: PISO EXTERNO | C158: - | D158: - | E158: 0 | F158: -
A159: 13.1 | B159: CONTRAPISO | C159: - | D159: - | E159: 0 | F159: -
A160: 13.1.1 | B160: Contrapiso em argamassa traço 1:4 (cimento e areia), preparo mecânico com betoneira 400 l, aplicado em áreas molhadas sobre laje, aderido, acabamento não reforçado, espessura 3cm. (Mastro) | C160: m² | D160: 9.81 | E160: 49.75 | F160: =E160*D160 -> 488.0475
A161: 13.2 | B161: REVESTIMENTO DE PISO EXTERNO | C161: - | D161: - | E161: 0 | F161: -
A162: 13.2.1 | B162: Fornecimento e assentamento de porcelanato ANTIDERRAPANTE retificado, tipo A, Spazzolato Vecchio HARD 84X84cm, Elizabeth ou equivalente, assentado em PISO ou PAREDE com argamassa industrializada AC-III, com espaçamento de 2mm e rejuntado com argamassa de rejuntamento flexível e impermeável. (escada e rampa de acesso) | C162: m² | D162: 91.68 | E162: 110.96 | F162: =E162*D162 -> 10172.8128
A163: 14.0 | B163: REVESTIMENTO DE TETO | C163: - | D163: - | E163: 0 | F163: -
A164: 14.1 | B164: FORRO REMOVIVEL | C164: - | D164: - | E164: 0 | F164: -
A165: 14.1.1 | B165: Fornecimento e instalação de forro removível em painéis de lã mineral, THERMATEX STAR da AMF ou equivalente, nas dimensões de 625x1250mm, espessura de 15mm, estruturado com perfis metálicos com acabamento na cor branca. Ver paginação do forro. | C165: m² | D165: 595.7 | E165: 107.02 | F165: =E165*D165 -> 63751.814
A166: 14.2 | B166: CHAPISCO INTERNO EM TETO | C166: - | D166: - | E166: 0 | F166: -
A167: 14.2.1 | B167: Chapisco aplicado no teto, com rolo para textura acrílica. argamassa traço 1:4 e emulsão polimérica (adesivo) com preparo em betoneira 400l. (custódia) | C167: m² | D167: 53.01 | E167: 5.97 | F167: =E167*D167 -> 316.4697
A168: 14.3 | B168: EMBOÇO / MASSA ÚNICA INTERNA EM TETO | C168: - | D168: - | E168: 0 | F168: -
A169: 14.3.1 | B169: Massa única, para recebimento de pintura, em argamassa traço 1:2:8, preparo mecânico com betoneira 400l, aplicada manualmente em teto, espessura de 20mm, com execução de taliscas. (custódia) | C169: m² | D169: 53.01 | E169: 49.49 | F169: =E169*D169 -> 2623.4649
A170: 15.0 | B170: IMPERMEABILIZAÇÃO (COBERTA E RESERVATÓRIOS) | C170: - | D170: - | E170: 0 | F170: -
A171: 15.1 | B171: Impermeabilização de superfície com manta asfáltica, uma camada, inclusive aplicação de primer asfáltico, e=4mm. | C171: m² | D171: 376.37 | E171: 109.83 | F171: =E171*D171 -> 41336.7171
A172: 15.2 | B172: Impermeabilização de superfície com argamassa polimérica/ membrana acrílica, 3 demãos. | C172: m² | D172: 84.9 | E172: 29.13 | F172: =E172*D172 -> 2473.137
A173: 15.3 | B173: Regularização piso com argamassa traço 1:4, e=3cm, para revestimento de piso. | C173: m² | D173: 200.81 | E173: 36.24 | F173: =E173*D173 -> 7277.3544
A174: 16.0 | B174: PINTURA | C174: - | D174: - | E174: 0 | F174: -
A175: 16.1 | B175: PINTURA DE PAREDE INTERNA | C175: - | D175: - | E175: 0 | F175: -
A176: 16.1.1 | B176: Aplicação de fundo selador acrílico em paredes, uma demão. | C176: m² | D176: 951.37 | E176: 2.75 | F176: =E176*D176 -> 2616.2675
A177: 16.1.2 | B177: Aplicação e lixamento de massa PVA em paredes, duas demãos. | C177: m² | D177: 951.37 | E177: 14.81 | F177: =E177*D177 -> 14089.7897
A178: 16.1.3 | B178: Aplicação manual de pintura com tinta látex acrílica em paredes, duas demãos. | C178: m² | D178: 951.37 | E178: 14.97 | F178: =E178*D178 -> 14242.0089
A179: 16.2 | B179: PINTURA EM TETO | C179: - | D179: - | E179: 0 | F179: -
A180: 16.2.1 | B180: Aplicação de fundo selador acrílico em teto, uma demão. | C180: m² | D180: 15.86 | E180: 3.22 | F180: =E180*D180 -> 51.0692
A181: 16.2.2 | B181: Aplicação e lixamento de massa látex em teto, duas demãos. | C181: m² | D181: 15.86 | E181: 28.44 | F181: =E181*D181 -> 451.0584
A182: 16.2.3 | B182: Aplicação manual de pintura com tinta látex acrílica em teto, duas demãos. | C182: m² | D182: 15.86 | E182: 17.1 | F182: =E182*D182 -> 271.206
A183: 16.3 | B183: PINTURA DAS CAIXAS EXTERNAS EM CONCRETO E TAMPA DO RESERVATÓRIO INFERIOR | C183: - | D183: - | E183: 0 | F183: -
A184: 16.3.1 | B184: Pintura de piso com tinta acrílica, aplicação manual, 2 demãos, incluso fundo preparador. (Vaga especial e tampas) | C184: m² | D184: 34.2 | E184: 18.93 | F184: =E184*D184 -> 647.406
A185: 16.3.2 | B185: Demarcação com tinta acrílica para pisos de faixas de trincha de 20cm de largura. (Estacionamento). | C185: m | D185: 464.57 | E185: 30.72 | F185: =E185*D185 -> 14271.5904
A186: 16.4 | B186: PINTURA ESQUADRIA EM FERRO | C186: - | D186: - | E186: 0 | F186: -
A187: 16.4.1 | B187: Pintura esmalte sintético, 2 (duas) demãos, para esquadria de ferro, com aplicação de fundo anticorrosivo. | C187: m² | D187: 196.86 | E187: 42.99 | F187: =E187*D187 -> 8463.0114
A188: 16.5 | B188: PINTURA EXTERNA | C188: - | D188: - | E188: 0 | F188: -
A189: 16.5.1 | B189: Aplicação manual de pintura a cal (caiação) em paredes, duas demãos. | C189: m² | D189: 437.94 | E189: 7.6 | F189: =E189*D189 -> 3328.344
A190: 17.0 | B190: MÁRMORES E GRANITOS | C190: - | D190: - | E190: 0 | F190: =E190*D190 -> 
A191: 17.1 | B191: BALCÃO E BANCADA EM GRANITO | C191: - | D191: - | E191: 0 | F191: -
A192: 17.1.1 | B192: Fornecimento e instalação de balcão em granito natural polido Cinza Ocre (2,36 x 0,55) com respaldo e testeira conforme detalhe do wc masculino. | C192: un | D192: 1 | E192: 1070.74 | F192: =E192*D192 -> 1070.74
A193: 17.1.2 | B193: Fornecimento e instalação de balcão em granito natural polido Cinza Ocre (3,02 x 0,55) com respaldo e testeira, banco de granito medindo (2,29x0,50m até 0,80m), conforme detalhe do wc feminino. | C193: un | D193: 1 | E193: 1829.52 | F193: =E193*D193 -> 1829.52
A194: 17.1.3 | B194: Fornecimento e instalação de balcão em granito natural polido Cinza Ocre (1,00 x 0,50) com respaldo e testeira conforme detalhe BG10 do wc Promotoria, Jurados e Juiz. | C194: un | D194: 3 | E194: 503.35 | F194: =E194*D194 -> 1510.05
A195: 17.1.4 | B195: Fornecimento e instalação de montante em granito natural bipolido Cinza Ocre com 2cm de espessura, h=1,80m, engastado em parede/piso, acabamento reto, para divisão dos banheiros e mictório, conforme detalhes. | C195: m² | D195: 9.3 | E195: 415.23 | F195: =E195*D195 -> 3861.639
A196: 17.1.5 | B196: Fornecimento e instalação de balcão em granito natural polido Cinza Ocre com 3 arestas medindo 2,10, 3,00 e 1,50m e alturas de 0,75 e 1,04m, conforme detalhe do balcão da recepção. | C196: un | D196: 1 | E196: 6440.36 | F196: =E196*D196 -> 6440.36
A197: 17.1.6 | B197: Fornecimento e instalação de balcão em granito natural polido Cinza Ocre medindo 3,04 e duas alturas de 0,75 e 1,10 conforme detalhe do balcão da secretaria. | C197: un | D197: 1 | E197: 2367.57 | F197: =E197*D197 -> 2367.57
A198: 17.1.7 | B198: Fornecimento e instalação de mesa em granito natural polido verde ubatuba e medindo 1,60 x 0,60 conforme detalhe BG02 da mesa de defesa e promotor. | C198: un | D198: 2 | E198: 1235.46 | F198: =E198*D198 -> 2470.92
A199: 17.1.8 | B199: Fornecimento e assentamento de bancada em granito polido verde ubatuba espessura de 2cm , tampo superior com as medidas de (1,12x0,65x2 + 1,30x0,60)m com acabamento frontal reto duplo e paredes externas revestidas em granito - Conforme Detalhe BG01 (Bancada do Juiz - Salão do Júri) - 01 UNID. | C199: un | D199: 1 | E199: 3243.85 | F199: =E199*D199 -> 3243.85
A200: 17.1.9 | B200: Fornecimento e assentamento de bancada em granito polido verde ubatuba espessura de 2cm , tampo superior com as medidas de (4,90x0,60)m com acabamento reto duplo em ambas as faces e paredes revestidas em granito - Conforme Detalhe BG03 (Bancada dos Jurados - Salão do Júri) - 01 UNID. | C200: un | D200: 1 | E200: 4220.81 | F200: =E200*D200 -> 4220.81
... 624 more rows
